Cogmind - Beta 11 X8 @@@ ROGUE MODE // 2021.10.31 @ 14:19:08 Player: IceBox Result: Destroyed by Cetus Guard with Advanced Variable Charge Gun Performance ------------- Evolutions (6) 3000 Regions Visited (26) 5200 Robots Destroyed (460) 2300 Value Destroyed (20623) 20623 Prototype IDs (42) 840 Alien Tech Used (0) 0 Bonus (5593) 5593 TOTAL SCORE: 37556 Bonus ------- High Alert Combat Kills 1452 Follower Combat Kills 743 Entered Garrisons 1200 Used RIF Installer 2500 Met Data Miner 300 Friendly Fire -602 Cogmind --------- Core Integrity 0/1150 Matter 293/300 Energy 99/100 System Corruption 11% Temperature Cool (9) Movement Core (50) Location -4/Cetus Parts ------- > --- POWER (1) -------- (None) > --- PROPULSION (6) --- (None) > --- UTILITY (9) ------ (None) > --- WEAPON (3) ------- (None) > --- INVENTORY (5) ---- Improved Energy Well (400) Precision Matter Filter Electrolaser HERF Cannon Heavy Shock Bomb Launcher Peak State ------------ > --- POWER ------------ Enhanced Fission Core > --- PROPULSION ------- Heavy Treads Heavy Treads Heavy Treads > --- UTILITY ---------- Advanced Cooling System Huge Storage Unit Machine Analyzer Advanced Signal Interpreter Improved Medium Armor Plating Layered Heavy Armor Plating Remote Force Field Relay Coupler [NC] > --- WEAPON ----------- KE Penetrator KE Penetrator KE Penetrator > --- INVENTORY -------- Enhanced Fission Core Improved Medium Treads Improved Medium Treads Advanced Cooling System Improved Energy Well Matter Compressor Structural Scanner Advanced Sensor Array Precision Matter Filter Transmission Jammer Relay Coupler [NC] Relay Coupler [NC] Relay Coupler [Sentry] System Backup Module Force Rifle Dispersion Rifle Dispersion Rifle Advanced Plasma Cannon Heavy Phase Cannon Neutron Cannon Neutron Cannon Heavy Shock Bomb Launcher Improved Remote Datajack [Rating: 110] Favorites ----------- Power Antimatter Reactor Engine Cooled Ion Engine Power Core Enhanced Fission Core Reactor Antimatter Reactor Propulsion Heavy Treads Treads Heavy Treads Leg Aluminum Leg Wheel Compact Wheel Flight Unit Improved Flight Unit Utility Huge Storage Unit Device Structural Scanner Storage Huge Storage Unit Processor Advanced Signal Interpreter Hackware Relay Coupler [NC] Protection Hardened Heavy Armor Plating Weapon Force Rifle Energy Gun Force Rifle Energy Cannon Heavy Phase Cannon Ballistic Gun KE Penetrator Launcher Heavy Shock Bomb Launcher Special Weapon Remote Datajack Slashing Weapon Axe Piercing Weapon Heavy Pick Special Melee Weapon Improved Datajack Build | -11 -10 -9 -9 -8 -8 -8 -8 -7 -7 -7 -7 -7 -7 -6 -6 -6 -6 -6 -5 -5 -5 -5 -5 -4 -4 -4 ------- Run | Scr Mat Mat Min Mat Gar Mat Gar Fac Was Fac Gar Fac Gar Fac Was Fac Low Dat Pro Fac Gar Fac Gar Fac Ext Cet Slots Evolved 12 | . . 2 . 2 . . . 2 . . . . . 2 . . . . . 2 . . . 2 . . Power . | . . . . . . . . . . . . . . . . . . . . . . . . . . . Propulsion 4 | . . . . 1 . . . 1 . . . . . . . . . . . . . . . 2 . . Utility 7 | . . 1 . 1 . . . 1 . . . . . 2 . . . . . 2 . . . . . . Weapon 1 | . . 1 . . . . . . . . . . . . . . . . . . . . . . . . Parts Attached 854 | 3 18 56 13 42 25 5 30 47 17 1 10 1 8 49 15 144 1 . 10 92 29 131 31 42 34 . Power 27 | . 1 6 . 1 . . . 2 2 . . . . 3 2 1 . . . 2 . 4 . 1 2 . Engine 10 | . 1 6 . 1 . . . 1 . . . . . 1 . . . . . . . . . . . . Core 6 | . . . . . . . . 1 . . . . . . . . . . . 1 . 4 . . . . Reactor 11 | . . . . . . . . . 2 . . . . 2 2 1 . . . 1 . . . 1 2 . Propulsion 148 | 2 2 22 5 15 18 3 22 10 2 . . . . 3 3 6 . . . 4 3 11 5 8 4 . Treads 96 | 1 1 11 3 9 9 2 13 10 2 . . . . 2 3 4 . . . 4 2 4 5 7 4 . Leg 3 | . . . . . . . . . . . . . . . . 2 . . . . . . . 1 . . Wheel 48 | 1 1 10 2 6 9 1 9 . . . . . . 1 . . . . . . 1 7 . . . . Hover . | . . . . . . . . . . . . . . . . . . . . . . . . . . . Flight 1 | . . 1 . . . . . . . . . . . . . . . . . . . . . . . . Utility 397 | . 5 11 5 18 3 . 4 10 4 . 5 . 4 23 6 77 1 . 8 61 20 82 13 22 15 . Device 263 | . . 4 2 15 1 . 1 6 3 . 1 . 1 14 3 52 1 . 8 50 9 57 8 19 8 . Storage 15 | . 3 . . . . . . 1 1 . . . . 1 . 1 . . . 1 . 3 2 . 2 . Processor 8 | . 1 1 . . . . . . . . . . . . . 1 . . . 1 . 4 . . . . Hackware 29 | . . . . . 1 . 1 1 . . 2 . . 3 . 3 . . . . 10 5 1 1 1 . Protection 82 | . 1 6 3 3 1 . 2 2 . . 2 . 3 5 3 20 . . . 9 1 13 2 2 4 . Artifact . | . . . . . . . . . . . . . . . . . . . . . . . . . . . Weapon 282 | 1 10 17 3 8 4 2 4 25 9 1 5 1 4 20 4 60 . . 2 25 6 34 13 11 13 . Energy Gun 78 | . 4 1 . . . . . 5 . . 1 . . 6 2 25 . . 1 15 3 8 1 3 3 . Energy Cannon 69 | . . 1 . 4 . . . 2 3 . 2 . 3 6 2 14 . . . 6 2 15 5 3 1 . Ballistic Gun 62 | 1 6 12 3 3 3 1 3 2 3 . . . . 3 . 8 . . . . . 2 4 2 6 . Ballistic Cannon . | . . . . . . . . . . . . . . . . . . . . . . . . . . . Launcher 18 | . . 2 . . . . 1 2 . . 2 . 1 . . 3 . . 1 1 . 2 2 1 . . Special Weapon 35 | . . . . . . . . 4 3 . . . . 4 . 7 . . . 3 1 7 1 2 3 . Impact Weapon . | . . . . . . . . . . . . . . . . . . . . . . . . . . . Slashing Weapon 13 | . . 1 . 1 1 . . 7 . 1 . 1 . 1 . . . . . . . . . . . . Piercing Weapon 2 | . . . . . . . . . . . . . . . . 2 . . . . . . . . . . Special Melee Weapon 5 | . . . . . . 1 . 3 . . . . . . . 1 . . . . . . . . . . Unidentified Prototypes 21 | . . 3 1 . . . . 1 1 . . . . 3 . 4 . . 1 4 . 2 . 1 . . Corrupted Parts 3 | . . . . . . . . . . . . . . . . . . . . . . . 2 1 . . System Corruption 21 | . . . . . . . . . . . . . . . . . . . . . . . 14 7 . . Parts Lost 125 | . 6 14 5 5 . . 1 9 . . 2 . 3 2 1 5 . . . 7 1 22 . 9 33 . Power 11 | . . 5 . 1 . . . . . . . . . . . . . . . 2 . 1 . . 2 . Propulsion 32 | . 2 1 . 1 . . . 6 . . . . . 1 . . . . . 2 1 9 . 2 7 . Utility 44 | . . 3 3 1 . . 1 2 . . 2 . 2 . . 4 . . . 2 . 5 . 5 14 . Weapon 38 | . 4 5 2 2 . . . 1 . . . . 1 1 1 1 . . . 1 . 7 . 2 10 . Highest Loss Streak 27 | . 2 6 4 2 . . 1 2 . . 1 . 1 1 1 3 . . . 1 1 5 . 6 27 . Average Slot Usage (%) 88 | . 98 99 91 94 99 100 100 99 85 84 83 84 84 84 66 85 80 80 79 81 91 91 82 90 81 . Engine 2 | . 14 10 11 9 9 9 9 5 . . . . . . . . . . . . . . . . . . Core 1 | . . . . . . . . 1 2 . . . . . . . . . . . 5 4 5 3 . . Reactor 2 | . . . . . . . . . 4 7 7 7 7 6 5 5 6 6 6 4 . . . 1 4 . Treads 14 | . 13 14 12 21 19 19 21 28 18 15 15 15 15 12 8 12 13 13 13 10 14 10 11 24 21 . Wheel 2 | . 14 7 9 5 7 7 5 1 . . . . . . 3 . . . . . 1 3 . . . . Device 14 | . . 4 4 16 18 18 16 12 22 23 15 15 14 14 7 16 6 6 5 18 14 14 11 16 18 . Storage 6 | . 14 11 11 9 9 9 9 7 7 7 7 7 7 10 6 6 6 6 6 5 5 5 5 5 7 . Processor 4 | . 7 . 2 . . . . . . . . . . . . 3 6 6 6 6 7 8 11 10 9 . Hackware 8 | . . . . . . . . 6 7 7 7 7 7 7 5 9 13 13 13 7 16 16 7 8 4 . Protection 7 | . 5 16 7 7 8 9 10 9 . . 6 7 7 12 6 7 6 6 6 5 4 3 8 3 1 . Energy Gun 5 | . 1 . . . . . . 2 1 . 6 7 7 5 8 9 13 13 11 10 12 4 . 1 1 . Energy Cannon 8 | . . . . 13 18 18 18 12 11 15 15 13 14 12 7 7 6 6 6 5 3 10 5 9 2 . Ballistic Gun 4 | . 25 32 32 10 4 5 8 . 3 . . . . . . 1 . . . . . . 9 1 9 . Naked Turns 66 | . . . . . . . . . . . . . . . . . . . . . . . . . 56 10 Heaviest Build 163 | 11 48 62 69 81 64 64 70 76 116 117 128 121 121 160 161 163 136 136 140 158 145 153 152 150 148 . Greatest Support 210 | 20 16 40 16 60 60 16 60 88 140 140 140 140 140 140 140 140 140 140 140 140 140 140 140 210 183 3 Greatest Overweight (x) 37 | . 2 3 4 8 3 3 4 4 . . . . . 7 10 1 . . . 1 11 12 1 . 37 . Average Overweight (x) 1 | . 1 2 3 3 2 3 3 . . . . . . . 6 . . . . . . 2 . . . . Largest Inventory Capacity 25 | 8 20 20 20 20 20 20 20 20 25 25 25 25 25 25 25 25 25 25 25 25 25 25 25 25 25 5 Average Capacity 23 | 8 16 20 20 20 20 20 20 20 22 25 25 25 25 25 25 25 25 25 25 25 25 25 25 25 23 5 Most Carried 25 | 8 20 20 20 20 20 20 20 20 23 25 25 25 25 25 25 25 25 25 25 25 25 25 25 25 25 5 Average Carried 22 | 6 11 19 19 19 19 19 19 19 21 23 24 24 24 24 24 24 25 25 24 24 24 24 24 21 21 5 Final Capacity 25 | 8 20 20 20 20 20 20 20 20 25 25 25 25 25 25 25 25 25 25 25 25 25 25 25 25 5 5 Final Carried 25 | 8 18 20 17 20 20 20 20 19 23 25 25 25 25 25 25 25 25 25 25 25 25 25 25 21 5 5 Class Distribution -------------------- 34% | Scavenger-Mutant 18% | Bothacker-Mutant 16% | Scavenger-Tank 7% | Bothacker-Tank 6% | Mutant 4% | Scavenger-Skirmisher 3% | Tank Dominant Class ---------------- Mutant | -10/Materials Scavenger-Tank | -9/Materials Scavenger-Tank | -9/Mines Scavenger-Mutant | -8/Materials Scavenger-Tank | -8/Garrison Scavenger-Tank | -8/Materials Scavenger-Tank | -8/Garrison Scavenger-Mutant | -7/Factory Scavenger-Mutant | -7/Waste Scavenger-Mutant | -7/Factory Scavenger-Tank | -7/Garrison Scavenger-Tank | -7/Factory Bothacker-Tank | -7/Garrison Bothacker-Tank | -6/Factory Scavenger-Tank | -6/Waste Scavenger-Mutant | -6/Factory Scavenger-Mutant | -6/Lower Caves Scavenger-Tank | -6/Data Miner Skirmisher | -5/Proximity Caves Scavenger-Mutant | -5/Factory Bothacker-Mutant | -5/Garrison Bothacker-Mutant | -5/Factory Bothacker-Mutant | -5/Garrison Bothacker-Mutant | -4/Factory Scavenger-Skirmisher | -4/Extension Scavenger-Skirmisher | -4/Cetus Resources | -11 -10 -9 -9 -8 -8 -8 -8 -7 -7 -7 -7 -7 -7 -6 -6 -6 -6 -6 -5 -5 -5 -5 -5 -4 -4 -4 ----------- Run | Scr Mat Mat Min Mat Gar Mat Gar Fac Was Fac Gar Fac Gar Fac Was Fac Low Dat Pro Fac Gar Fac Gar Fac Ext Cet Matter Collected 13115 | 258 380 1152 133 632 283 53 382 639 295 . 310 . 227 569 210 1662 . . 168 1168 506 2008 714 645 721 . Remotely . | . . . . . . . . . . . . . . . . . . . . . . . . . . . Salvage Created 24879 | 89 675 1713 99 1300 588 59 628 1316 295 . 822 . 707 1604 1494 2876 . . 421 2225 1207 2922 1195 1385 1259 . Parts 1043 | 5 40 110 4 61 41 6 23 53 9 . 37 . 20 59 22 149 . . 20 76 37 110 58 59 44 . Haulers Intercepted 14 | . 1 5 . 3 . . . . . . . . . 1 . 3 . . . . . 1 . . . . Recyclers Shooed 17 | 1 2 1 . . . . . 1 . . . . . 4 . 2 . . . 3 . 2 . . 1 . Parts Field Recycled 4 | . . . . . . . . . . . . . . . . 4 . . . . . . . . . . Retrieved Matter 26 | . . . . . . . . . . . . . . . . 26 . . . . . . . . . . Parts Self-Destructed 19 | . . . . . . . . . . . . . . . . . . . 19 . . . . . . . Prevented . | . . . . . . . . . . . . . . . . . . . . . . . . . . . Kills | -11 -10 -9 -9 -8 -8 -8 -8 -7 -7 -7 -7 -7 -7 -6 -6 -6 -6 -6 -5 -5 -5 -5 -5 -4 -4 -4 ------- Run | Scr Mat Mat Min Mat Gar Mat Gar Fac Was Fac Gar Fac Gar Fac Was Fac Low Dat Pro Fac Gar Fac Gar Fac Ext Cet Combat Hostiles Destroyed 344 | . 12 28 7 15 15 1 18 26 2 . 19 . 16 8 6 32 . . 10 28 15 36 21 18 11 . Guns 151 | . 9 25 7 4 2 . 4 6 1 . 5 . 3 3 1 22 . . 3 11 11 9 12 5 8 . Cannons 128 | . . . . 9 13 1 11 16 1 . 10 . 7 5 1 5 . . 1 11 3 16 7 10 1 . AOE 32 | . 3 3 . . . . 3 3 . . 4 . 3 . . 1 . . 5 2 . 4 1 . . . Classes Destroyed 22 | 2 4 7 1 . 2 . . 2 1 . . . . . . . . . . 1 . . 1 . 1 . Worker 24 | . 2 2 . 2 . . . 2 . . . . . 3 . 6 . . . . . 5 . 1 1 . Builder 8 | . . 1 . 1 . . . 1 . . . . . . . 2 . . . 1 . . . 1 1 . Tunneler 6 | 1 . . . . . . . . . . . . . 1 . 2 . . . . . 1 . . 1 . Hauler 14 | . 1 5 . 3 . . . . . . . . . 1 . 3 . . . . . 1 . . . . Recycler 26 | 1 . 3 . 2 . . . . . . . . . 7 . 3 . . . 2 . 5 . . 3 . Mechanic 7 | . . 2 . 1 . . . 1 . . . . . . . 1 . . . 1 . 1 . . . . Operator 7 | . . 1 . . . . . . . . . . . 1 . 1 . . . 3 . . . . 1 . Watcher 24 | . 3 4 . 2 . . . 2 . . . . . 1 . 3 . . . 3 . 6 . . . . Swarmer 66 | . . 8 4 . 4 . 7 3 . . 4 . 4 . . 4 . . 5 1 5 10 7 . . . Cutter 2 | . . . . . 2 . . . . . . . . . . . . . . . . . . . . . Grunt 126 | . 12 9 . 12 5 . 8 9 . . 8 . 7 3 . 8 . . 2 10 6 3 10 9 5 . Brawler 5 | . . 1 . . . . . 1 . . . . . . . 1 . . 1 . . . . 1 . . Duelist 11 | . . 2 . . . . . 1 . . 2 . . . . 1 . . 1 1 . . 2 1 . . Protector 1 | . . . . . . . . . . . . . . . . . . . . . . . . . 1 . Sentry 55 | . . 8 . 3 3 1 3 3 . . 4 . 4 2 . 7 . . 1 2 2 7 1 3 1 . Specialist 8 | . . . . . . . . 2 . . . . . . . . . . . 4 . 2 . . . . Hunter 16 | . . . . . 1 . . 3 . . . . . 2 . 3 . . . . 1 3 1 . 2 . Programmer 41 | . . . . . . . . 4 . . 1 . 1 1 . 8 . . . 9 2 11 . 4 . . Heavy 1 | . . . . . . . . . . . . . . . . . . . . 1 . . . . . . Behemoth 2 | . . . . . . . . . . . . . . . . . . . . . . . 1 . 1 . Compactor 8 | . . . . . . . . . 2 . . . . . 6 . . . . . . . . . . . Assembled 3 | . . . 3 . . . . . . . . . . . . . . . . . . . . . . . Butcher 1 | . . . . . . . . . . . . . . . . . . . . . . . . . 1 . Guerrilla 1 | . . . . . . . . . . . . . . . . . . . . . . . . . 1 . Best Kill Streak 8 | 2 6 6 3 5 8 1 4 4 1 . 5 . 4 4 1 8 . . 5 5 5 5 4 5 5 . Combat Bots Only 8 | . 3 5 3 3 8 1 4 4 1 . 5 . 4 3 1 6 . . 5 4 5 5 4 5 3 . Max Kills in Single Turn 3 | 1 3 2 1 2 1 1 2 1 1 . 3 . 2 1 1 3 . . 2 2 1 3 1 2 2 . Gunslinging 1 | . . 1 . . . . . . . . . . . . . . . . . . . 1 . . . . Exploded 3 | . 3 2 . . . . 2 1 . . 3 . 2 . . 1 . . 2 1 . 2 1 . . . Melee . | . . . . . . . . . . . . . . . . . . . . . . . . . . . Uniques/NPCs Destroyed . | . . . . . . . . . . . . . . . . . . . . . . . . . . . Combat | -11 -10 -9 -9 -8 -8 -8 -8 -7 -7 -7 -7 -7 -7 -6 -6 -6 -6 -6 -5 -5 -5 -5 -5 -4 -4 -4 -------- Run | Scr Mat Mat Min Mat Gar Mat Gar Fac Was Fac Gar Fac Gar Fac Was Fac Low Dat Pro Fac Gar Fac Gar Fac Ext Cet Damage Taken 29739 | . 787 1819 597 1040 559 30 612 2093 . . 705 . 825 762 699 2882 . . 296 3542 864 3078 1042 2554 4866 87 Core 2794 | . 137 200 65 112 64 14 28 189 . . 49 . 95 103 . 136 . . 16 99 56 228 26 237 853 87 Absorbed by Shields 1111 | . . . . 72 . . . . . . . . . . . . . . . . 110 75 582 52 220 . Reduced by Siege Mode 1129 | . . . . . . . . . . . 23 . 76 31 42 263 . . 13 296 44 66 82 117 76 . Core Remaining (%) 59 | 100 45 . 33 . . . 60 . . . . . 52 . . . . . 70 . . . 59 . . . Volleys Fired 1810 | 7 71 114 17 77 35 1 57 140 24 . 35 . 46 63 48 276 . . 21 213 123 216 79 78 69 . Largest 3 | 2 2 3 3 3 3 3 3 3 3 . 3 . 3 3 3 3 . . 3 3 3 3 3 3 3 . Hottest 288 | 40 80 66 66 136 159 159 159 204 133 . 200 . 203 229 228 260 . . 250 269 189 286 286 288 208 . Shots Fired 3518 | 14 128 328 45 174 81 3 133 237 49 . 89 . 103 151 114 427 . . 39 368 214 392 129 136 164 . Gun 1710 | 14 128 325 45 60 11 1 26 39 29 . 27 . 32 46 42 198 . . 23 157 126 105 79 54 143 . Cannon 1651 | . . . . 114 70 2 105 181 11 . 58 . 68 99 66 212 . . 12 196 63 264 39 75 16 . Launcher 51 | . . 3 . . . . 2 7 . . 4 . 3 . . 7 . . 4 5 . 2 9 5 . . Special 106 | . . . . . . . . 10 9 . . . . 6 6 10 . . . 10 25 21 2 2 5 . Kinetic 882 | 14 110 325 45 60 11 1 26 2 29 . . . . . . 40 . . . . . 4 78 41 96 . Thermal 2451 | . . . . 114 70 2 105 218 11 . 85 . 100 145 108 364 . . 35 353 189 365 36 88 63 . Explosive 27 | . . 3 . . . . 2 7 . . 3 . 3 . . . . . 4 5 . . . . . . Electromagnetic 52 | . 18 . . . . . . . . . 1 . . . . 13 . . . . . 2 13 5 . . Robot Hit Streak 50 | 4 11 22 5 17 14 4 18 12 18 . 40 . 50 30 15 33 . . 13 21 50 17 34 20 23 . Robot Miss Streak 7 | 1 3 6 7 2 3 . 2 4 4 . 2 . 6 3 2 4 . . 1 3 2 4 3 1 3 . Penetration Max 1 | . . . . . . . . . . . . . . . . 1 . . . . . . 1 1 1 . Secondary Targets 17 | . 1 7 1 . . . . . . . . . . . . 3 . . . . . 1 1 1 2 . Max Gunslinging Chain 1 | . 1 1 1 . . . . . . . . . . . . 1 . . . . . 1 1 1 1 . Shots Hit Robots 2063 | 7 81 209 19 123 52 2 64 138 43 . 62 . 70 97 94 204 . . 21 177 115 197 94 78 116 . Core Hits 851 | 3 31 87 13 45 23 1 28 59 19 . 34 . 26 41 15 91 . . 15 74 36 79 46 41 44 . Critical Kills 19 | . . . . 3 . . . 1 . . . . . . 4 1 . . . 4 . 3 . 1 2 . Critical Parts Destroyed 20 | . . . . . . . . . . . . . . . . 4 . . 1 3 . . 6 2 4 . Critical Strikes 79 | . 1 . . 3 . . . 3 . . 2 . 7 4 8 7 . . 1 11 5 11 6 3 7 . Burn 38 | . . . . . . . . 2 . . 2 . 7 4 4 2 . . . 4 5 8 . . . . Meltdown 13 | . . . . 2 . . . 1 . . . . . . 4 . . . . 2 . 3 . 1 . . Destroy 27 | . . . . 1 . . . . . . . . . . . 5 . . 1 5 . . 6 2 7 . Corrupt 1 | . 1 . . . . . . . . . . . . . . . . . . . . . . . . . Melee Attacks 43 | . . 1 . 2 7 1 . 28 . . . 2 . 1 . 1 . . . . . . . . . . Impact . | . . . . . . . . . . . . . . . . . . . . . . . . . . . Slashing 36 | . . 1 . 2 7 . . 23 . . . 2 . 1 . . . . . . . . . . . . Piercing 1 | . . . . . . . . . . . . . . . . 1 . . . . . . . . . . Sneak Attacks 5 | . . . . . . 1 . 4 . . . . . . . . . . . . . . . . . . Combat Hostiles . | . . . . . . . . . . . . . . . . . . . . . . . . . . . Follow-up Attacks . | . . . . . . . . . . . . . . . . . . . . . . . . . . . Damage Inflicted 53170 | 87 1326 2445 283 2195 1083 23 1502 3951 979 . 2189 . 2091 2324 2192 5384 . . 957 5653 2447 6531 2828 3020 3680 . Guns 25810 | 87 948 2237 283 603 110 . 191 557 740 . 513 . 662 905 758 3539 . . 426 2920 2178 1913 1644 1123 3473 . Cannons 22004 | . . . . 1583 973 23 1072 2611 239 . 1070 . 1156 1418 1434 1586 . . 100 2020 269 3943 880 1470 157 . Explosions 5235 | . 378 208 . . . . 239 783 . . 606 . 273 . . 232 . . 431 713 . 667 304 401 . . Melee . | . . . . . . . . . . . . . . . . . . . . . . . . . . . Ramming 121 | . . . . 9 . . . . . . . . . 1 . 27 . . . . . 8 . 26 50 . Kinetic 10881 | 87 761 2237 283 603 110 . 191 30 740 . . . . . . 876 . . . . . 66 1620 867 2410 . Thermal 36936 | . . . . 1583 973 23 1072 3138 239 . 1583 . 1818 2323 2192 4133 . . 526 4940 2447 6207 793 1726 1220 . Explosive 3607 | . 378 208 . . . . 239 783 . . 582 . 273 . . . . . 431 713 . . . . . . Electromagnetic 1625 | . 187 . . . . . . . . . 24 . . . . 348 . . . . . 250 415 401 . . Impact . | . . . . . . . . . . . . . . . . . . . . . . . . . . . Slashing . | . . . . . . . . . . . . . . . . . . . . . . . . . . . Piercing . | . . . . . . . . . . . . . . . . . . . . . . . . . . . Highest Corruption 29 | . . 1 6 . . . . 3 29 29 29 29 29 1 2 2 2 2 2 9 10 16 14 14 11 11 Average Corruption 6 | . . 1 2 . . . . 2 19 29 29 29 29 1 1 2 2 2 2 5 9 10 13 12 11 11 Corruption Purged 24 | . . . . . . . . . . . . . . . . . . . . . . 20 . 4 . . Effects 626 | . . 10 6 . . . . 27 15 2 41 9 39 4 4 61 . 1 10 99 55 150 9 44 40 . Message Errors 180 | . . 6 1 . . . . 8 4 1 8 2 7 2 2 28 . . 4 31 16 38 2 10 10 . Matter Fused 125 | . . . . . . . . 4 4 . 9 2 11 . . . . . . 19 7 48 2 10 9 . Heat Flow Errors 78 | . . . 2 . . . . 5 . 1 5 . 8 . . 12 . 1 3 9 9 15 2 3 3 . Energy Discharges 88 | . . 2 . . . . . 5 2 . 7 3 5 2 . 11 . . 2 13 7 17 2 6 4 . Parts Rejected 6 | . . . . . . . . . 2 . . . . . . . . . . 1 . 2 . . 1 . Data Loss (minor) 79 | . . 2 2 . . . . 5 1 . 4 . 2 . 2 8 . . 1 16 7 16 1 6 6 . Data Loss (major) 20 | . . . 1 . . . . . . . 2 1 1 . . . . . . 2 3 2 . 5 3 . Misfires 15 | . . . . . . . . . 1 . 1 . . . . . . . . 5 1 4 . 1 2 . Alerts 5 | . . . . . . . . . . . . 1 . . . . . . . . 3 1 . . . . Misdirections 1 | . . . . . . . . . . . . . 1 . . . . . . . . . . . . . Weapon Failures 29 | . . . . . . . . . 1 . 5 . 4 . . 2 . . . 3 2 7 . 3 2 . Overload Shots 4 | . . . . . . . . . . . . . . . . . . . . 2 . 2 . . . . Overflow Damage 1045 | . 13 . . 2 9 . 6 198 . . 78 . 17 16 . 17 . . . 149 . 460 20 60 . . Projectiles 497 | . . . . 2 9 . 4 129 . . . . 1 16 . 17 . . . 89 . 154 20 56 . . Explosions 548 | . 13 . . . . . 2 69 . . 78 . 16 . . . . . . 60 . 306 . 4 . . Melee . | . . . . . . . . . . . . . . . . . . . . . . . . . . . Knockbacks . | . . . . . . . . . . . . . . . . . . . . . . . . . . . Impact . | . . . . . . . . . . . . . . . . . . . . . . . . . . . Kinetic . | . . . . . . . . . . . . . . . . . . . . . . . . . . . Secondary . | . . . . . . . . . . . . . . . . . . . . . . . . . . . Self-Inflicted Damage 675 | . 96 . . . . . . . . . 11 . 76 67 . . . . . . . 263 63 99 . . Shots 15 | . 1 . . . . . . . . . 1 . 2 1 . . . . . . . 4 2 4 . . Rammed 14 | . . . . 1 . . . . . . . . . 1 . 3 . . . . . 1 . 3 5 . Targets Rammed 14 | . . . . 1 . . . . . . . . . 1 . 3 . . . . . 1 . 3 5 . Kicked . | . . . . . . . . . . . . . . . . . . . . . . . . . . . Crushed . | . . . . . . . . . . . . . . . . . . . . . . . . . . . Highest Temperature 505 | . 75 140 182 180 22 . 137 360 . 125 207 . 218 224 350 505 . 126 324 395 219 378 268 253 391 . Average Temperature 67 | . 22 23 46 58 7 . 40 77 . 86 45 . 63 64 95 71 . 70 120 78 75 63 48 87 96 . Received Heat Transfer 6225 | . 387 486 160 543 198 9 198 399 . . 396 . 282 159 . 471 . . 54 502 219 225 245 452 831 9 Effects 17 | . . . . . . . . . . . . . . 1 4 6 . . . 3 . . . 1 2 . Shutdowns 1 | . . . . . . . . . . . . . . . . 1 . . . . . . . . . . Energy Bleed 2 | . . . . . . . . . . . . . . 1 . . . . . . . . . 1 . . Interference 12 | . . . . . . . . . . . . . . . 4 3 . . . 3 . . . . 2 . Matter Decay 1 | . . . . . . . . . . . . . . . . 1 . . . . . . . . . . Damage (minor) 1 | . . . . . . . . . . . . . . . . 1 . . . . . . . . . . Siege Activations 88 | . . . . . . . . . . . 4 . 8 5 6 15 . . 2 15 9 4 14 4 2 . Total Turns 1612 | . . . . . . . . . . . 59 . 119 51 129 262 . . 61 267 172 56 272 115 49 . Longest Duration 54 | . . . . . . . . . . . 24 . 25 20 41 50 . . 54 29 43 21 41 42 36 . Robots Corrupted 5 | . . . . . . . . . . . . . . . . 2 . . . . . . 1 2 . . Combat Hostiles 5 | . . . . . . . . . . . . . . . . 2 . . . . . . 1 2 . . Parts Fried 10 | . 2 . . . . . . . . . . . . . . 4 . . . . . . 2 2 . . Impact Corruptions . | . . . . . . . . . . . . . . . . . . . . . . . . . . . Robots Melted 33 | . . . . 3 . . . 1 . . . . 3 . 4 2 . . 1 4 4 8 . 1 2 . Combat Hostiles 28 | . . . . 2 . . . 1 . . . . 3 . 4 2 . . 1 4 1 7 . 1 2 . Parts Melted 172 | . . . . 8 2 . 5 18 . . 6 . 7 13 6 20 . . 5 31 12 30 1 5 3 . Heat Transferred 56833 | . . . . 2849 1739 37 1887 4810 370 . 2368 . 3108 3737 3811 6685 . . 816 7396 4522 8416 788 1877 1617 . Parts Sabotaged . | . . . . . . . . . . . . . . . . . . . . . . . . . . . Parts Stolen . | . . . . . . . . . . . . . . . . . . . . . . . . . . . Parts Stripped . | . . . . . . . . . . . . . . . . . . . . . . . . . . . Power Chain Reactions 1 | . . . . . . . . . . . . . . . . . . . . . . . 1 . . . Missiles Intercepted . | . . . . . . . . . . . . . . . . . . . . . . . . . . . Alert | -11 -10 -9 -9 -8 -8 -8 -8 -7 -7 -7 -7 -7 -7 -6 -6 -6 -6 -6 -5 -5 -5 -5 -5 -4 -4 -4 ------- Run | Scr Mat Mat Min Mat Gar Mat Gar Fac Was Fac Gar Fac Gar Fac Was Fac Low Dat Pro Fac Gar Fac Gar Fac Ext Cet Peak Influence 836 | 10 297 279 168 217 615 349 794 607 154 . 549 292 682 439 80 634 . . . 644 808 451 836 709 418 20 Initial 450 | . 6 19 108 19 50 299 226 416 139 . . 287 204 357 68 . . . . . 450 424 242 438 266 20 Average 266 | 5 130 107 146 59 386 329 498 395 144 . 243 288 418 300 40 285 . . . 154 609 129 648 557 91 20 Maximum Alert Level 3 | . 1 1 . 1 2 1 3 2 . . 2 1 2 2 . 2 . . . 2 3 2 3 3 2 . Low Security (%) 46 | 100 78 90 100 98 12 . . . 100 100 53 . . 11 100 30 . . . 72 . 77 . . 74 100 Level 1 24 | . 21 9 . 1 19 100 37 51 . . 18 100 54 74 . 43 . . . 5 . 20 8 . 20 . Level 2 25 | . . . . . 68 . 46 48 . . 27 . 45 14 . 26 . . . 21 73 2 46 94 4 . Level 3 4 | . . . . . . . 16 . . . . . . . . . . . . . 26 . 44 5 . . Level 4 . | . . . . . . . . . . . . . . . . . . . . . . . . . . . Level 5 . | . . . . . . . . . . . . . . . . . . . . . . . . . . . High Security . | . . . . . . . . . . . . . . . . . . . . . . . . . . . Max Security . | . . . . . . . . . . . . . . . . . . . . . . . . . . . Squads Dispatched 76 | . 3 1 . 5 . . . 13 . . . . . 5 . 15 . . . 14 . 11 . 7 2 . Investigation 11 | . 1 1 . 4 . . . 1 . . . . . 1 . . . . . . . 3 . . . . Extermination 27 | . . . . . . . . 3 . . . . . 2 . 7 . . . 6 . 6 . 3 . . Reinforcement 27 | . 2 . . 1 . . . 8 . . . . . 2 . 5 . . . 6 . 2 . . 1 . Assault 7 | . . . . . . . . 1 . . . . . . . 2 . . . 2 . . . 1 1 . Garrison 4 | . . . . . . . . . . . . . . . . 1 . . . . . . . 3 . . Intercept . | . . . . . . . . . . . . . . . . . . . . . . . . . . . Construction Impeded 5 | . . . . . . . . . . . . . . 1 . 2 . . . . . 1 . . 1 . Haulers Reinforced 2 | . . . . . . . . 2 . . . . . . . . . . . . . . . . . . Active Scanning Responses . | . . . . . . . . . . . . . . . . . . . . . . . . . . . Cargo Convoy Interrupts 1 | . . . . . . . . 1 . . . . . . . . . . . . . . . . . . Stealth | -11 -10 -9 -9 -8 -8 -8 -8 -7 -7 -7 -7 -7 -7 -6 -6 -6 -6 -6 -5 -5 -5 -5 -5 -4 -4 -4 --------- Run | Scr Mat Mat Min Mat Gar Mat Gar Fac Was Fac Gar Fac Gar Fac Was Fac Low Dat Pro Fac Gar Fac Gar Fac Ext Cet Distress Signals 20 | . 1 2 . 3 . . . 3 . . . . . . . 3 . . . 1 . 1 . 1 4 1 Communications Jammed 2 | . . . . . . . . . . . . . . . . . . . . . . . . 2 . . Distress Signals . | . . . . . . . . . . . . . . . . . . . . . . . . . . . Times Spotted 514 | . 20 40 15 27 14 1 18 40 6 . 20 . 18 12 6 51 . . 8 45 34 50 29 25 30 5 Peak Tracking Total 9 | . 6 5 9 7 4 1 5 5 1 . 4 . 5 3 2 6 . . 5 5 9 5 6 5 7 5 Tactical Retreats 28 | . . 1 1 3 1 . 1 1 . . 1 . 1 . . 3 . . 2 . 2 . 5 5 1 . Traps | -11 -10 -9 -9 -8 -8 -8 -8 -7 -7 -7 -7 -7 -7 -6 -6 -6 -6 -6 -5 -5 -5 -5 -5 -4 -4 -4 ------- Run | Scr Mat Mat Min Mat Gar Mat Gar Fac Was Fac Gar Fac Gar Fac Was Fac Low Dat Pro Fac Gar Fac Gar Fac Ext Cet Traps Triggered 33 | . . 1 . 1 7 . 2 4 . . 1 . . 2 . 2 . . . 2 . 4 7 . . . Indirectly 2 | . . . . . . . . . . . . . . . . . . . . . . . 2 . . . Trap Hack Attempts . | . . . . . . . . . . . . . . . . . . . . . . . . . . . Triggered . | . . . . . . . . . . . . . . . . . . . . . . . . . . . Disarmed 3 | . . . . 3 . . . . . . . . . . . . . . . . . . . . . . Reprogrammed . | . . . . . . . . . . . . . . . . . . . . . . . . . . . Reused . | . . . . . . . . . . . . . . . . . . . . . . . . . . . Traps Extracted . | . . . . . . . . . . . . . . . . . . . . . . . . . . . Installed . | . . . . . . . . . . . . . . . . . . . . . . . . . . . Triggered 3 | . 1 . . . . . . 1 . . . . . . . . . . 1 . . . . . . . Machines | -11 -10 -9 -9 -8 -8 -8 -8 -7 -7 -7 -7 -7 -7 -6 -6 -6 -6 -6 -5 -5 -5 -5 -5 -4 -4 -4 ---------- Run | Scr Mat Mat Min Mat Gar Mat Gar Fac Was Fac Gar Fac Gar Fac Was Fac Low Dat Pro Fac Gar Fac Gar Fac Ext Cet Machines Disabled 57 | . 3 . . 1 2 . 2 . . . 3 . 8 1 . 4 . . . 6 5 14 4 2 2 . Max in Single Turn 4 | . 1 . . 1 1 . 1 . . . 1 . 1 1 . 2 . . . 1 1 4 1 1 1 . Garrison Access 8 | . . . . . . . . . . . . . . 1 . 4 . . . . . 3 . . . . Garrison Relay 13 | . . . . . 2 . 2 . . . 2 . 3 . . . . . . . 3 . 1 . . . Machines Sabotaged . | . . . . . . . . . . . . . . . . . . . . . . . . . . . Garrisons Compromised 1 | . . . . . . . . 1 . . . . . . . . . . . . . . . . . . Overloaded Fab Kills . | . . . . . . . . . . . . . . . . . . . . . . . . . . . Hacking | -11 -10 -9 -9 -8 -8 -8 -8 -7 -7 -7 -7 -7 -7 -6 -6 -6 -6 -6 -5 -5 -5 -5 -5 -4 -4 -4 --------- Run | Scr Mat Mat Min Mat Gar Mat Gar Fac Was Fac Gar Fac Gar Fac Was Fac Low Dat Pro Fac Gar Fac Gar Fac Ext Cet Machines Accessed 133 | . 8 13 1 8 . 2 . 6 . 1 . 2 . 3 . 26 . 4 . 18 . 31 . 5 5 . Terminals 75 | . 7 9 . 4 . 1 . 4 . . . . . 1 . 16 . . . 10 . 15 . 3 5 . Fabricators 8 | . . . . . . . . . . . . . . . . 1 . . . 2 . 4 . 1 . . Repair Stations 15 | . 1 1 . 1 . . . 1 . . . 1 . 1 . 3 . . . 3 . 3 . . . . Recycling Units 10 | . . 2 . 1 . . . 1 . . . . . . . 2 . . . 1 . 2 . 1 . . Scanalyzers 6 | . . 1 . 1 . . . . . . . . . . . . . . . 1 . 3 . . . . Garrison Access 14 | . . . . 1 . 1 . . . 1 . 1 . 1 . 4 . . . 1 . 4 . . . . Total Hacks 352 | . 23 38 1 32 . 5 . 15 . 2 . 3 . 7 . 55 . 31 . 37 . 79 . 11 13 . Successful 196 | . 9 20 1 19 . 4 . 9 . 2 . 3 . 5 . 32 . 31 . 11 . 40 . 7 3 . Failed 156 | . 14 18 . 13 . 1 . 6 . . . . . 2 . 23 . . . 26 . 39 . 4 10 . Catastrophic 24 | . . 2 . 1 . . . 1 . . . . . . . 7 . . . 7 . 4 . . 2 . Database Lockouts . | . . . . . . . . . . . . . . . . . . . . . . . . . . . Manual 108 | . 9 15 . 18 . . . 9 . . . 1 . . . 20 . . . 14 . 11 . 8 3 . Terminals 201 | . 22 29 . 24 . 3 . 10 . . . . . 2 . 36 . . . 19 . 37 . 6 13 . Fabricators 13 | . . . . . . . . . . . . . . . . 3 . . . 3 . 6 . 1 . . Repair Stations 31 | . 1 1 . 2 . . . 1 . . . 1 . 3 . 5 . . . 8 . 9 . . . . Recycling Units 24 | . . 4 . 1 . . . 4 . . . . . . . 3 . . . 2 . 6 . 4 . . Scanalyzers 22 | . . 4 . 2 . . . . . . . . . . . . . . . 3 . 13 . . . . Garrison Access 29 | . . . . 3 . 2 . . . 2 . 2 . 2 . 8 . . . 2 . 8 . . . . Terminal Hacks 97 | . 6 10 1 9 . 2 . 4 . . . . . 1 . 15 . 31 . 2 . 11 . 2 3 . Record 23 | . . . . . . . . . . . . . . . . 7 . 11 . . . 3 . . 2 . Part Schematic 11 | . . . . . . . . . . . . . . . . . . 11 . . . . . . . . Robot Schematic 6 | . . . . . . . . . . . . . . . . . . 6 . . . . . . . . Robot Analysis 5 | . . . . 2 . 1 . 1 . . . . . . . 1 . . . . . . . . . . Prototype ID Bank 12 | . 2 3 . 1 . 1 . . . . . . . . . 2 . 3 . . . . . . . . Open Door 2 | . . . 1 . . . . . . . . . . . . . . . . . . . . 1 . . Open DSF 6 | . . . . . . . . 1 . . . . . . . 2 . . . 1 . 2 . . . . Branch Access Points 2 | . . . . . . . . . . . . . . . . 1 . . . . . 1 . . . . Terminal Index 3 | . . . . 1 . . . . . . . . . . . 2 . . . . . . . . . . Alert Level 2 | . 1 1 . . . . . . . . . . . . . . . . . . . . . . . . Unreport Threat 3 | . . 1 . . . . . . . . . . . . . . . . . . . 2 . . . . Locate Traps 10 | . 1 2 . 1 . . . 1 . . . . . 1 . . . . . . . 2 . 1 1 . Disarm Traps 1 | . . . . 1 . . . . . . . . . . . . . . . . . . . . . . Dispatch Records 1 | . . 1 . . . . . . . . . . . . . . . . . . . . . . . . Maintenance Status 1 | . . 1 . . . . . . . . . . . . . . . . . . . . . . . . Patrol Status 1 | . . . . 1 . . . . . . . . . . . . . . . . . . . . . . Hauler Manifests 4 | . 1 1 . 1 . . . 1 . . . . . . . . . . . . . . . . . . Registered Components 1 | . . . . . . . . . . . . . . . . . . . . . . 1 . . . . Zone Layout 3 | . 1 . . 1 . . . . . . . . . . . . . . . 1 . . . . . . Fabricator Hacks 6 | . . . . . . . . . . . . . . . . 1 . . . 1 . 4 . . . . Network Status 2 | . . . . . . . . . . . . . . . . 1 . . . 1 . . . . . . Load Schematic 2 | . . . . . . . . . . . . . . . . . . . . . . 2 . . . . Build 2 | . . . . . . . . . . . . . . . . . . . . . . 2 . . . . Repair Station Hacks 10 | . . . . . . . . . . . . . . 2 . 3 . . . 2 . 3 . . . . Scan Component 6 | . . . . . . . . . . . . . . 1 . 2 . . . 1 . 2 . . . . Repair 4 | . . . . . . . . . . . . . . 1 . 1 . . . 1 . 1 . . . . Recycling Unit Hacks 7 | . . . . 1 . . . 1 . . . . . . . 1 . . . . . 3 . 1 . . Process 1 | . . . . . . . . . . . . . . . . . . . . . . 1 . . . . Report Inventory 5 | . . . . 1 . . . 1 . . . . . . . 1 . . . . . 1 . 1 . . Retrieve Matter 1 | . . . . . . . . . . . . . . . . . . . . . . 1 . . . . Scanalyzer 14 | . . 4 . 2 . . . . . . . . . . . . . . . 2 . 6 . . . . Insert Component 8 | . . 2 . 1 . . . . . . . . . . . . . . . 1 . 4 . . . . Analyze 6 | . . 2 . 1 . . . . . . . . . . . . . . . 1 . 2 . . . . Garrison Access Hacks 27 | . . . . 1 . 2 . . . 2 . 2 . 2 . 8 . . . 2 . 8 . . . . Unlock Access 6 | . . . . 1 . 1 . . . 1 . 1 . . . . . . . 1 . 1 . . . . Seal Access 8 | . . . . . . . . . . . . . . 1 . 4 . . . . . 3 . . . . Coupler Status 13 | . . . . . . 1 . . . 1 . 1 . 1 . 4 . . . 1 . 4 . . . . Unauthorized Hacks 35 | . 3 6 . 6 . . . 4 . . . 1 . . . 4 . . . 2 . 5 . 4 . . Terminals 16 | . 2 3 . 5 . . . 2 . . . . . . . 1 . . . 1 . 1 . 1 . . Track 3 | . . 2 . 1 . . . . . . . . . . . . . . . . . . . . . . Assimilate 1 | . 1 . . . . . . . . . . . . . . . . . . . . . . . . . Botnet 4 | . . . . 3 . . . 1 . . . . . . . . . . . . . . . . . . Operators 8 | . 1 1 . 1 . . . 1 . . . . . . . 1 . . . 1 . 1 . 1 . . Fabricators . | . . . . . . . . . . . . . . . . . . . . . . . . . . . Repair Stations 8 | . 1 1 . 1 . . . . . . . 1 . . . 1 . . . 1 . 2 . . . . Mechanics 8 | . 1 1 . 1 . . . . . . . 1 . . . 1 . . . 1 . 2 . . . . Recycling Units 11 | . . 2 . . . . . 2 . . . . . . . 2 . . . . . 2 . 3 . . Monitor 2 | . . . . . . . . . . . . . . . . . . . . . . 1 . 1 . . Recyclers 5 | . . 1 . . . . . 1 . . . . . . . 1 . . . . . 1 . 1 . . Mask 4 | . . 1 . . . . . 1 . . . . . . . 1 . . . . . . . 1 . . Scanalyzers . | . . . . . . . . . . . . . . . . . . . . . . . . . . . Garrison Access . | . . . . . . . . . . . . . . . . . . . . . . . . . . . Data Cores Recovered . | . . . . . . . . . . . . . . . . . . . . . . . . . . . Used . | . . . . . . . . . . . . . . . . . . . . . . . . . . . Hacking Detections 105 | . 8 13 . 6 . 1 . 4 . 1 . 1 . 3 . 18 . . . 16 . 25 . 4 5 . Full Trace Events 7 | . . 1 . 2 . . . . . . . . . 1 . . . . . . . 3 . . . . Feedback Events 3 | . . 1 . . . . . . . . . . . 1 . . . . . . . 1 . . . . Corruption 3 | . . 1 . . . . . . . . . . . 1 . . . . . . . 1 . . . . Feedback Blocked . | . . . . . . . . . . . . . . . . . . . . . . . . . . . Robot Schematics Acquired 6 | . . . . . . . . . . . . . . . . . . 6 . . . . . . . . Robots Built . | . . . . . . . . . . . . . . . . . . . . . . . . . . . Authchips . | . . . . . . . . . . . . . . . . . . . . . . . . . . . Time . | . . . . . . . . . . . . . . . . . . . . . . . . . . . Total Robot Build Rating . | . . . . . . . . . . . . . . . . . . . . . . . . . . . Part Schematics Acquired 16 | . . 1 . 1 . . . . . . . . . . . . . 11 . 1 . 2 . . . . Parts Built 4 | . . . . . . . . . . . . . . . . . . . . . . 4 . . . . Authchips . | . . . . . . . . . . . . . . . . . . . . . . . . . . . Time 223 | . . . . . . . . . . . . . . . . . . . . . . 223 . . . . Total Part Build Rating 26 | . . . . . . . . . . . . . . . . . . . . . . 26 . . . . Parts Repaired 4 | . . . . . . . . . . . . . . 1 . 1 . . . 1 . 1 . . . . Time 156 | . . . . . . . . . . . . . . 28 . 50 . . . 28 . 50 . . . . Parts Recycled . | . . . . . . . . . . . . . . . . . . . . . . . . . . . Recycled Matter 5 | . . . . . . . . . . . . . . . . . . . . . . 5 . . . . Retrieved Matter 5 | . . . . . . . . . . . . . . . . . . . . . . 5 . . . . Retrieved Components . | . . . . . . . . . . . . . . . . . . . . . . . . . . . Parts Scanalyzed 7 | . . 2 . 1 . . . . . . . . . . . . . . . 1 . 3 . . . . Part Schematics Acquired 5 | . . 1 . 1 . . . . . . . . . . . . . . . 1 . 2 . . . . Parts Damaged . | . . . . . . . . . . . . . . . . . . . . . . . . . . . Bothacking | -11 -10 -9 -9 -8 -8 -8 -8 -7 -7 -7 -7 -7 -7 -6 -6 -6 -6 -6 -5 -5 -5 -5 -5 -4 -4 -4 ------------ Run | Scr Mat Mat Min Mat Gar Mat Gar Fac Was Fac Gar Fac Gar Fac Was Fac Low Dat Pro Fac Gar Fac Gar Fac Ext Cet Used RIF Installer 5 | . . . . . 1 . 1 . . . 1 . 1 . . . . . . . 1 . . . . . Hotswap 1 | . . . . . . . 1 . . . . . . . . . . . . . . . . . . . Threat Obfuscator 1 | . . . . . . . . . . . . . 1 . . . . . . . . . . . . . Patrol Navigation 1 | . . . . . . . . . . . . . . . . . . . . . 1 . . . . . Autooverride 1 | . . . . . . . . . . . 1 . . . . . . . . . . . . . . . Robots Hacked 55 | . . . . . . . . 5 6 . . . . 3 4 7 . . . 4 15 5 3 1 2 . Non-combat 18 | . . . . . . . . 5 . . . . . 3 . 4 . . . 2 . 3 . . 1 . Combat 37 | . . . . . . . . . 6 . . . . . 4 3 . . . 2 15 2 3 1 1 . Autooverrided 3 | . . . . . . . . . . . . . . . . 1 . . . . 1 . 1 . . . Robot Hacks Applied 71 | . . . . . . . . 8 6 . . . . 5 5 6 . . . 6 16 11 2 2 4 . no_distress 7 | . . . . . . . . . . . . . . 2 . 3 . . . 1 . 1 . . . . find_chute 3 | . . . . . . . . 2 . . . . . 1 . . . . . . . . . . . . map_walls 1 | . . . . . . . . 1 . . . . . . . . . . . . . . . . . . find_fabricator 1 | . . . . . . . . . . . . . . 1 . . . . . . . . . . . . find_dsf 1 | . . . . . . . . . . . . . . 1 . . . . . . . . . . . . purge_threat 8 | . . . . . . . . 2 . . . . . . . . . . . . . 3 . . 3 . find_terminals 1 | . . . . . . . . . . . . . . . . . . . . . . 1 . . . . locate_traps 1 | . . . . . . . . 1 . . . . . . . . . . . . . . . . . . block_reporting 2 | . . . . . . . . . . . . . . . . . . . . . . 2 . . . . recall_investigation 1 | . . . . . . . . . . . . . . . . . . . . . . 1 . . . . map_route 1 | . . . . . . . . . . . . . . . . . . . . 1 . . . . . . mark_security 1 | . . . . . . . . . . . . . . . . . . . . 1 . . . . . . relay_feed 1 | . . . . . . . . 1 . . . . . . . . . . . . . . . . . . ignore_targets 11 | . . . . . . . . . 6 . . . . . 5 . . . . . . . . . . . find_garrison 3 | . . . . . . . . . . . . . . . . . . . . 1 . 1 . 1 . . link_fov 1 | . . . . . . . . 1 . . . . . . . . . . . . . . . . . . overload_power 2 | . . . . . . . . . . . . . . . . . . . . . 1 1 . . . . disable_weapons 2 | . . . . . . . . . . . . . . . . . . . . . . . . 1 1 . overwrite_iff 21 | . . . . . . . . . . . . . . . . 2 . . . 2 14 1 2 . . . formatsys_low 1 | . . . . . . . . . . . . . . . . 1 . . . . . . . . . . formatsys_high 1 | . . . . . . . . . . . . . . . . . . . . . 1 . . . . . Relay Couplers Released 61 | . . . . . 8 . 9 . . . 8 . 12 1 . 4 . . . . 14 1 4 . . . Machine Destruction 61 | . . . . . 8 . 9 . . . 8 . 12 1 . 4 . . . . 14 1 4 . . . Attached 24 | . . . . . 1 . 1 1 . . 2 . . 2 . 2 . . . . 10 2 1 1 1 . Robots Rewired 5 | . . . . . . . . . . . . . . . . . . . . . 3 . . . 2 . Allies Hacked . | . . . . . . . . . . . . . . . . . . . . . . . . . . . Hacks Repelled . | . . . . . . . . . . . . . . . . . . . . . . . . . . . Allies | -11 -10 -9 -9 -8 -8 -8 -8 -7 -7 -7 -7 -7 -7 -6 -6 -6 -6 -6 -5 -5 -5 -5 -5 -4 -4 -4 -------- Run | Scr Mat Mat Min Mat Gar Mat Gar Fac Was Fac Gar Fac Gar Fac Was Fac Low Dat Pro Fac Gar Fac Gar Fac Ext Cet Total Allies 34 | . 1 . . . . . . . . . . . . . . 4 . . 1 2 17 1 3 . 5 . Largest Group 5 | . 1 . . . . . . . . . . . . . . 2 . . 1 2 3 1 3 . 5 . Highest-Rated Group 225 | . 10 . . . . . . . . . . . . . . 58 . . 95 58 123 29 87 . 225 . Highest-Rated Ally 95 | . 10 . . . . . . . . . . . . . . 29 . . 95 29 85 29 29 . 49 . Total Orders 12 | . . . . 4 . . . . . . . . . . . 7 . . . . 1 . . . . . STAY 1 | . . . . . . . . . . . . . . . . . . . . . 1 . . . . . AID 3 | . . . . . . . . . . . . . . . . 3 . . . . . . . . . . EXPLORE 6 | . . . . 4 . . . . . . . . . . . 2 . . . . . . . . . . RETURN 2 | . . . . . . . . . . . . . . . . 2 . . . . . . . . . . Ally Attacks 132 | . . . . . . . . . . . . . . . . 11 . . 8 8 37 2 10 . 56 . Total Damage 3087 | . . . . . . . . . . . . . . . . 154 . . 239 95 768 36 151 . 1644 . Kills 20 | . . . . . . . . . . . . . . . . 1 . . . 1 9 . 1 . 8 . Allies Corrupted 2 | . . . . 2 . . . . . . . . . . . . . . . . . . . . . . Allies Melted 1 | . . . . . . . . . . . . . . . . . . . . . 1 . . . . . Intel | -11 -10 -9 -9 -8 -8 -8 -8 -7 -7 -7 -7 -7 -7 -6 -6 -6 -6 -6 -5 -5 -5 -5 -5 -4 -4 -4 ------- Run | Scr Mat Mat Min Mat Gar Mat Gar Fac Was Fac Gar Fac Gar Fac Was Fac Low Dat Pro Fac Gar Fac Gar Fac Ext Cet Robot Analysis Total 5 | . . . . 2 . 1 . 1 . . . . . . . 1 . . . . . . . . . . Derelict Logs Recovered 4 | . . . 3 . . . . . . . . . . . . . . . 1 . . . . . . . Drone Launches 18 | . . . . 16 . . . . . . . . . . . 2 . . . . . . . . . . Drone Recoveries . | . . . . . . . . . . . . . . . . . . . . . . . . . . . Exploration | -11 -10 -9 -9 -8 -8 -8 -8 -7 -7 -7 -7 -7 -7 -6 -6 -6 -6 -6 -5 -5 -5 -5 -5 -4 -4 -4 ------------- Run | Scr Mat Mat Min Mat Gar Mat Gar Fac Was Fac Gar Fac Gar Fac Was Fac Low Dat Pro Fac Gar Fac Gar Fac Ext Cet Turns Passed 38055 | 58 1078 2184 430 1488 1038 154 764 2445 417 52 666 171 745 1354 731 7072 4 124 1032 5050 1677 5149 2060 1030 1072 10 Spaces Moved 17090 | 32 589 969 245 617 556 83 304 1128 199 30 301 101 306 609 211 3528 1 78 412 2102 641 2392 673 433 530 20 Core 136 | . . . . . . . . . . . . . . . . . . . . . . . . . 116 20 Treads 12541 | . . 176 . 188 28 . 7 918 199 30 301 101 306 605 73 3528 1 78 412 2102 640 1328 673 433 414 . Legs 4 | 4 . . . . . . . . . . . . . . . . . . . . . . . . . . Wheels 4409 | 28 589 793 245 429 528 83 297 210 . . . . . 4 138 . . . . . 1 1064 . . . . Hover . | . . . . . . . . . . . . . . . . . . . . . . . . . . . Flight . | . . . . . . . . . . . . . . . . . . . . . . . . . . . Fastest Speed 50 | 100 100 130 145 145 145 145 145 160 160 160 160 160 160 160 205 160 160 160 160 160 160 131 160 157 50 50 Average Speed 165 | 102 119 158 145 175 149 145 156 160 160 160 160 160 160 162 237 162 160 160 160 172 181 172 227 159 144 50 Slowest Speed 1900 | 120 130 240 160 240 240 145 240 160 160 160 160 160 160 240 250 240 160 160 160 240 255 480 240 160 1900 50 Overloaded Moves . | . . . . . . . . . . . . . . . . . . . . . . . . . . . Propulsion Burnouts . | . . . . . . . . . . . . . . . . . . . . . . . . . . . Robots Hopped . | . . . . . . . . . . . . . . . . . . . . . . . . . . . Cave-ins Triggered . | . . . . . . . . . . . . . . . . . . . . . . . . . . . Exploration Rate (%) 48 | 4 93 83 60 80 62 11 54 38 74 1 47 4 60 12 79 83 1 69 60 49 63 64 56 12 71 15 Regions Visited 26 Branch Regions 6 Pre-discovered Areas 4 | . . . 2 . . . . . . . . . . . . . . 1 1 . . . . . . . Known Exits Taken 11 | . . . . 1 . 1 . . . 1 . 1 . . . 1 1 1 1 1 . 1 . 1 . . Unknown Exits Taken 5 | 1 1 1 1 . . . . . . . . . . . . . . . . . . . . . 1 . Scrap Searched 2 | . . . 1 . . . . . . . . . . . . . . . 1 . . . . . . . Spaces Dug 402 | . . 19 . 2 5 . . 44 . . . 2 18 8 . 105 . . 3 94 13 69 1 18 1 . Terrain Destroyed 914 | . 21 25 . 2 5 . 9 83 . . 16 2 48 63 4 155 . . 49 166 17 190 9 36 14 . Melee 33 | . . 1 . 2 5 . . 23 . . . 2 . . . . . . . . . . . . . . Projectile 560 | . . . . . . . . 30 . . . . 1 27 4 154 . . 8 129 17 134 6 36 14 . AOE 320 | . 21 24 . . . . 9 30 . . 16 . 47 36 . . . . 41 37 . 56 3 . . . Terrain Rammed . | . . . . . . . . . . . . . . . . . . . . . . . . . . . Walls Destroyed . | . . . . . . . . . . . . . . . . . . . . . . . . . . . Machines Disabled . | . . . . . . . . . . . . . . . . . . . . . . . . . . . Actions | -11 -10 -9 -9 -8 -8 -8 -8 -7 -7 -7 -7 -7 -7 -6 -6 -6 -6 -6 -5 -5 -5 -5 -5 -4 -4 -4 --------- Run | Scr Mat Mat Min Mat Gar Mat Gar Fac Was Fac Gar Fac Gar Fac Was Fac Low Dat Pro Fac Gar Fac Gar Fac Ext Cet Total 23679 | 43 846 1396 285 861 670 112 470 1503 260 33 411 106 476 851 359 4460 3 77 748 3201 995 3082 1074 643 694 20 Wait 3077 | . 142 185 1 76 14 17 64 105 1 . 56 . 104 90 57 395 2 . 300 732 166 219 258 64 29 . Move 17069 | 31 588 968 244 617 555 83 303 1128 198 30 300 101 305 609 210 3527 . 77 411 2101 639 2392 671 432 529 20 Hop . | . . . . . . . . . . . . . . . . . . . . . . . . . . . Pick Up 300 | 2 19 40 3 16 8 2 2 26 5 2 5 1 7 12 12 30 . . 1 22 11 45 13 8 8 . Fast Attach 247 | . 2 6 3 17 6 1 8 12 8 . 2 . 1 17 7 49 . . 4 23 10 51 7 11 2 . Attach 166 | . 7 20 5 10 1 . 1 10 1 . 2 . 3 11 6 16 . . . 15 7 22 4 11 14 . Detach 102 | . 2 5 2 10 1 . 2 2 4 . 2 . 1 4 2 11 . . . 11 10 13 4 8 8 . Swap 443 | 3 9 30 5 15 18 4 21 25 8 1 6 1 4 21 2 79 1 . 6 55 12 59 20 20 18 . Drop 373 | . 6 27 5 20 10 3 8 27 11 . 3 1 5 22 15 73 . . 5 29 9 64 18 8 4 . Fire 1810 | 7 71 114 17 77 35 1 57 140 24 . 35 . 46 63 48 276 . . 21 213 123 216 79 78 69 . Melee 43 | . . 1 . 2 7 1 . 28 . . . 2 . 1 . 1 . . . . . . . . . . Ram . | . . . . . . . . . . . . . . . . . . . . . . . . . . . Kick . | . . . . . . . . . . . . . . . . . . . . . . . . . . . Crush 14 | . . . . 1 . . . . . . . . . 1 . 3 . . . . . 1 . 3 5 . Escape Stasis 19 | . . . . . 15 . 4 . . . . . . . . . . . . . . . . . . . Rewire 16 | . . . . . . . . . . . . . . . . . . . . . 8 . . . 8 . Trap . | . . . . . . . . . . . . . . . . . . . . . . . . . . . Miscellaneous . | . . . . . . . . . . . . . . . . . . . . . . . . . . . Route ------- -11/Scrapyard -10/Materials (discovered 4 exits: *Mat x3 / [*Min]) -9/Materials (discovered 5 exits: *Mat x3 / *Min x2) -9/Mines (discovered 2 exits: *Mat x2) -8/Materials (discovered 4 exits: *Fac x3 / Gar) -8/Garrison (discovered 3 exits: *Mat x3) -8/Materials -8/Garrison -7/Factory -7/Waste -7/Factory -7/Garrison -7/Factory -7/Garrison (discovered 2 exits: *Fac x2) -6/Factory -6/Waste -6/Factory (discovered 5 exits: *Fac x3 / *Low x2) -6/Lower Caves -6/Data Miner -5/Proximity Caves -5/Factory (discovered 3 exits: *Fac / *Upp / Gar) -5/Garrison (discovered 2 exits: *Fac x2) -5/Factory (discovered 6 exits: *Fac x3 / *Upp x2 / Gar) -5/Garrison (discovered 2 exits: *Fac x2) -4/Factory -4/Extension (discovered 2 exits: [*Res] / [*Cet]) -4/Cetus History --------- Turn | Location | Event 1 | -11/Scrapyard | Discovered new exit (range 3) 59 | -11/Scrapyard | Entered Materials 300 | -10/Materials | Build established: Mutant 391 | -10/Materials | Discovered new exit (range 17) 484 | -10/Materials | Discovered new exit (range 13) 539 | -10/Materials | Discovered new exit (range 18) 775 | -10/Materials | Discovered new exit (range 15) 1116 | -10/Materials | Core integrity fell below 50% 1137 | -10/Materials | Entered another Materials area 1137 | -9/Materials | Evolved 2 slots: Utility x1, Weapon x1 1505 | -9/Materials | Discovered new exit (range 16) 1697 | -9/Materials | Lost 6 parts (2p1u3w) 1993 | -9/Materials | Build established: Scavenger-Tank 2133 | -9/Materials | Discovered new exit (range 10) 2564 | -9/Materials | Discovered new exit (range 13) 2798 | -9/Materials | Discovered new exit (range 14) 3040 | -9/Materials | Discovered new exit (range 8) 3321 | -9/Materials | Entered Mines 3324 | -9/Mines | Core integrity fell below 50% 3426 | -9/Mines | Found the Drone Emporium 3440 | -9/Mines | Found Prototype Device 3440 | -9/Mines | Identified Decoy Drone Bay 3505 | -9/Mines | Learned location of Storage (-7) 3592 | -9/Mines | Assembled infested the area 3659 | -9/Mines | Lost 4 parts (2u2w) 3711 | -9/Mines | Discovered new exit (range 6) 3725 | -9/Mines | Discovered new exit (range 8) 3751 | -9/Mines | Entered Materials 3751 | -8/Materials | Evolved 2 slots: Propulsion x1, Utility x1 3752 | -8/Materials | Identified exit to Factory 4329 | -8/Materials | Discovered exit to Factory (range 11) 4369 | -8/Materials | Build established: Scavenger-Mutant 4947 | -8/Materials | Discovered exit to Factory (range 16) 5239 | -8/Materials | Identified exit to Garrison 5239 | -8/Materials | Entered Garrison 5303 | -8/Garrison | Triggered checkpoint 5376 | -8/Garrison | Triggered checkpoint 5403 | -8/Garrison | Destroyed 8 combat bots 5472 | -8/Garrison | Discovered new exit (range 14) 5576 | -8/Garrison | Triggered checkpoint 5639 | -8/Garrison | Build established: Scavenger-Tank 5673 | -8/Garrison | Discovered new exit (range 8) 5817 | -8/Garrison | Discovered new exit (range 8) 5835 | -8/Garrison | Installed Relay Interface Framework 5984 | -8/Garrison | Triggered checkpoint 6035 | -8/Garrison | Garrison Relay disabled 6162 | -8/Garrison | Triggered checkpoint 6212 | -8/Garrison | Build established: Scavenger-Mutant 6214 | -8/Garrison | Garrison Relay disabled 6277 | -8/Garrison | Entered Materials 6431 | -8/Materials | Identified exit to Garrison 6431 | -8/Materials | Entered Garrison 6439 | -8/Garrison | Expanded RIF knowledge: Hotswap 6618 | -8/Garrison | Triggered checkpoint 6715 | -8/Garrison | Garrison Relay disabled 6814 | -8/Garrison | Triggered checkpoint 7067 | -8/Garrison | Triggered checkpoint 7134 | -8/Garrison | Garrison Relay disabled 7180 | -8/Garrison | Discovered exit to Factory (range 10) 7195 | -8/Garrison | Entered Factory 7195 | -7/Factory | Evolved 2 slots: Propulsion x1, Utility x1 7849 | -7/Factory | Discovered new exit (range 10) 7995 | -7/Factory | First assault squad dispatched 8474 | -7/Factory | Cargo convoy interrupted 9640 | -7/Factory | Sucked down chute 9640 | -7/Factory | Entered Waste 9655 | -7/Waste | EMP discharged 9655 | -7/Waste | System corruption reached 10% 9668 | -7/Waste | Spotted C-40 Crusher 9711 | -7/Waste | Spotted C-40 Crusher 9755 | -7/Waste | EMP discharged 9764 | -7/Waste | Destroyed C-40 Crusher 9774 | -7/Waste | Spotted C-40 Crusher 9798 | -7/Waste | Destroyed C-40 Crusher 9824 | -7/Waste | Found Damper Plating 9827 | -7/Waste | Found Damper Plating 9855 | -7/Waste | EMP discharged 9859 | -7/Waste | Spotted C-40 Crusher 9880 | -7/Waste | Spotted C-40 Crusher 9955 | -7/Waste | EMP discharged 10009 | -7/Waste | Spotted C-40 Crusher 10027 | -7/Waste | Discovered new exit (range 15) 10055 | -7/Waste | EMP discharged 10057 | -7/Waste | Entered Factory 10109 | -7/Factory | Identified exit to Garrison 10109 | -7/Factory | Entered Garrison 10324 | -7/Garrison | Triggered checkpoint 10371 | -7/Garrison | Garrison Relay disabled 10461 | -7/Garrison | Triggered checkpoint 10493 | -7/Garrison | Build established: Scavenger-Tank 10644 | -7/Garrison | Triggered checkpoint 10699 | -7/Garrison | Garrison Relay disabled 10746 | -7/Garrison | Discovered new exit (range 10) 10768 | -7/Garrison | Expanded RIF knowledge: Autooverride 10775 | -7/Garrison | Entered Factory 10946 | -7/Factory | Identified exit to Garrison 10946 | -7/Factory | Entered Garrison 10954 | -7/Garrison | Expanded RIF knowledge: Threat Obfuscation 10988 | -7/Garrison | Triggered checkpoint 11026 | -7/Garrison | Garrison Relay disabled 11104 | -7/Garrison | Triggered checkpoint 11186 | -7/Garrison | Discovered new exit (range 8) 11204 | -7/Garrison | Triggered checkpoint 11241 | -7/Garrison | Garrison Relay disabled 11339 | -7/Garrison | Triggered checkpoint 11576 | -7/Garrison | Triggered checkpoint 11615 | -7/Garrison | Garrison Relay disabled 11655 | -7/Garrison | Build established: Bothacker-Tank 11673 | -7/Garrison | Discovered new exit (range 12) 11691 | -7/Garrison | Entered Factory 11691 | -6/Factory | Evolved 2 slots: Utility x2 11944 | -6/Factory | Repaired Hvy. Treads 12472 | -6/Factory | Discovered new exit (range 8) 13045 | -6/Factory | Sucked down chute 13045 | -6/Factory | Entered Waste 13060 | -6/Waste | EMP discharged 13132 | -6/Waste | Spotted C-40 Crusher 13138 | -6/Waste | Spotted C-40 Crusher 13160 | -6/Waste | EMP discharged 13193 | -6/Waste | Spotted C-40 Crusher 13257 | -6/Waste | Spotted C-40 Crusher 13260 | -6/Waste | EMP discharged 13283 | -6/Waste | Spotted C-40 Crusher 13299 | -6/Waste | Spotted C-40 Crusher 13339 | -6/Waste | Build established: Bothacker-Mutant 13360 | -6/Waste | EMP discharged 13367 | -6/Waste | Crushed by Compactor (0 parts destroyed, 1 dropped) 13382 | -6/Waste | Crushed by Compactor (0 parts destroyed, 1 dropped) 13397 | -6/Waste | Destroyed C-40 Crusher 13439 | -6/Waste | Destroyed C-40 Crusher 13453 | -6/Waste | Found Damper Plating 13460 | -6/Waste | EMP discharged 13484 | -6/Waste | Destroyed C-40 Crusher 13530 | -6/Waste | Destroyed C-40 Crusher 13560 | -6/Waste | EMP discharged 13585 | -6/Waste | Crushed by Compactor (1 part destroyed) 13588 | -6/Waste | Crushed by Compactor (0 parts destroyed, 1 dropped) 13602 | -6/Waste | Destroyed C-40 Crusher 13632 | -6/Waste | Found Damper Plating 13660 | -6/Waste | EMP discharged 13660 | -6/Waste | Destroyed C-40 Crusher 13706 | -6/Waste | Build established: Scavenger-Tank 13740 | -6/Waste | Discovered new exit (range 16) 13760 | -6/Waste | EMP discharged 13776 | -6/Waste | Entered Factory 14577 | -6/Factory | Spotted B-75 Beast 14681 | -6/Factory | Repaired Phase Cannon? 15573 | -6/Factory | Discovered new exit (range 5) 15871 | -6/Factory | Garrison activated, responded to threat 15942 | -6/Factory | Lost 3 parts (3u) 16225 | -6/Factory | Build established: Scavenger-Mutant 16399 | -6/Factory | Discovered new exit (range 3) 16402 | -6/Factory | Identified exit to Factory 17366 | -6/Factory | Identified exit to Lower Caves 17580 | -6/Factory | Discovered exit to Factory (range 4) 20076 | -6/Factory | First assault squad dispatched 20848 | -6/Factory | Entered Lower Caves 20849 | -6/Lower Caves | A Derelict revealed a hidden shortcut to meet someone special 20852 | -6/Lower Caves | Identified exit to Data Miner 20852 | -6/Lower Caves | Entered Data Miner 20852 | -6/Data Miner | Discovered new exit (range 7) 20883 | -6/Data Miner | Met Data Miner 20915 | -6/Data Miner | Learned location of Section 7 (-2) 20915 | -6/Data Miner | Acquired the access code to Warlord's prototype stash 20942 | -6/Data Miner | Received God Mode back door access code from Data Miner 20974 | -6/Data Miner | Identified exit to Proximity Caves 20976 | -6/Data Miner | Entered Proximity Caves 21216 | -5/Proximity Caves | Escorted by Enhanced Grunt 21423 | -5/Proximity Caves | Attracted the attention of an 0b10 checkpoint 21543 | -5/Proximity Caves | Found Prototype Device 21543 | -5/Proximity Caves | Identified Exp. Thermal Shield 21701 | -5/Proximity Caves | Discovered exit to Factory (range 13) 21843 | -5/Proximity Caves | Received a Behemoth hack from an annoying Tinkerer 21982 | -5/Proximity Caves | Build established: Skirmisher 22008 | -5/Proximity Caves | Entered Factory 22008 | -5/Factory | Evolved 2 slots: Utility x2 22420 | -5/Factory | Build established: Scavenger-Mutant 23025 | -5/Factory | Found Launcher Loader 25700 | -5/Factory | Discovered new exit (range 15) 25823 | -5/Factory | Repaired Hvy. Treads 26364 | -5/Factory | Discovered new exit (range 16) 26396 | -5/Factory | Identified exit to Factory 26808 | -5/Factory | First assault squad dispatched 26833 | -5/Factory | Incoming assault squad redirected 27041 | -5/Factory | Identified exit to Garrison 27058 | -5/Factory | Entered Garrison 27070 | -5/Garrison | Expanded RIF knowledge: Patrol Navigation 27091 | -5/Garrison | Triggered checkpoint 27234 | -5/Garrison | Garrison Relay disabled 27243 | -5/Garrison | Triggered checkpoint 27249 | -5/Garrison | System corruption reached 10% 27400 | -5/Garrison | Build established: Scavenger-Tank 27644 | -5/Garrison | Spotted B-75 Beast 27651 | -5/Garrison | Triggered checkpoint 27654 | -5/Garrison | Triggered checkpoint 27883 | -5/Garrison | Discovered new exit (range 10) 27937 | -5/Garrison | Triggered checkpoint 27990 | -5/Garrison | Triggered checkpoint 28159 | -5/Garrison | Garrison Relay disabled 28274 | -5/Garrison | Triggered checkpoint 28348 | -5/Garrison | Garrison Relay disabled 28408 | -5/Garrison | Discovered new exit (range 12) 28660 | -5/Garrison | Build established: Bothacker-Mutant 28730 | -5/Garrison | Identified exit to Factory 28735 | -5/Garrison | Entered Factory 29140 | -5/Factory | Discovered new exit (range 3) 29143 | -5/Factory | Identified exit to Upper Caves 29571 | -5/Factory | Repaired Lyr. Medium Armor Plating 31003 | -5/Factory | Incoming investigation squad redirected 31275 | -5/Factory | Discovered exit to Upper Caves (range 15) 31491 | -5/Factory | Lost 4 parts (1p1n1u1w) 31693 | -5/Factory | Lost 5 parts (2n2u1w) 31701 | -5/Factory | Incoming investigation squad redirected 31790 | -5/Factory | Fabricated Hvy. Treads? 31876 | -5/Factory | Discovered exit to Factory (range 11) 32337 | -5/Factory | Discovered exit to Factory (range 13) 32922 | -5/Factory | Discovered exit to Factory (range 5) 33421 | -5/Factory | Fabricated Dispersion Rifle? 33884 | -5/Factory | Identified exit to Garrison 33884 | -5/Factory | Entered Garrison 34359 | -5/Garrison | Spotted B-75 Beast 34501 | -5/Garrison | Triggered checkpoint 34578 | -5/Garrison | Triggered checkpoint 34624 | -5/Garrison | Triggered checkpoint 34865 | -5/Garrison | Garrison Relay disabled 34957 | -5/Garrison | Triggered checkpoint 35004 | -5/Garrison | Triggered checkpoint 35046 | -5/Garrison | Destroyed B-75 Beast 35313 | -5/Garrison | Discovered exit to Factory (range 15) 35531 | -5/Garrison | Discovered exit to Factory (range 12) 35944 | -5/Garrison | Entered Factory 35944 | -4/Factory | Evolved 2 slots: Propulsion x2 36008 | -4/Factory | Garrison activated, responded to threat 36081 | -4/Factory | Lost 6 parts (2n3u1w) 36093 | -4/Factory | System corruption reached 10% 36444 | -4/Factory | First assault squad dispatched 36463 | -4/Factory | Incoming assault squad redirected 36832 | -4/Factory | Discovered new exit (range 6) 36837 | -4/Factory | Identified exit to Extension 36928 | -4/Factory | Lost 3 parts (2u1w) 36974 | -4/Factory | Entered Extension 37027 | -4/Extension | Rescued a captive Derelict 37224 | -4/Extension | First assault squad dispatched 37248 | -4/Extension | Incoming assault squad redirected 37276 | -4/Extension | Rescued a captive Derelict 37330 | -4/Extension | Rescued a captive Derelict 37699 | -4/Extension | Disrupted transfer network 37717 | -4/Extension | Allies destroyed B-86 Titan 37792 | -4/Extension | Spotted B-86 Titan 37830 | -4/Extension | Destroyed B-86 Titan 37839 | -4/Extension | Lost 4 parts (1p2n1w) 37846 | -4/Extension | Found Unknown Protection 37848 | -4/Extension | Identified Hvy. Reflective Plating 37969 | -4/Extension | Core integrity fell below 50% 37988 | -4/Extension | Core integrity fell below 20% 37990 | -4/Extension | Released all parts (2) 38021 | -4/Extension | Lost 27 parts (1p4n13u9w) 38036 | -4/Extension | Discovered new exit (range 16) 38036 | -4/Extension | Discovered new exit (range 15) 38046 | -4/Extension | Entered Cetus 38053 | -4/Cetus | Spotted Cetus Guard 38053 | -4/Cetus | Spotted Cetus Guard 38055 | -4/Cetus | Spotted Cetus Guard 38055 | -4/Cetus | Spotted Cetus Guard 38056 | -4/Cetus | Destroyed by Cetus Guard with Advanced Variable Charge Gun Last Messages --------------- 37990_ Relay Coupler [NC] crushed and broken. 37990_ Matter Neutralizer crushed and broken. 37990_ Matter Compressor crushed and broken. 37990_ Particle Accelerator crushed and broken. 37990_ Imp. Force Field crushed and broken. 37990_ Released Machine Analyzer. 37990_ Acquired 82 matter. 37990_ G-73 Enforcer overheating. 37991_ System corrupted: Matter fused (-7). 37991_ Acquired 86 matter. 37998_ R-10 Processor destroyed. 38022_ System corrupted: Substantial component data lost. 38036_ EXIT=FOUND 38041_ System corrupted: Matter fused (-7). 38044_ U-05 Engineer exits Transfer Station. LOCATION=UNKNOWN GOAL=ESCAPE 38054_ Penetrated by Slug. [Achievement: Tester] [Achievement: Torch] Map ----- +----------------------------------------------------+ | ???????????????????????????????????????????????? | | ???????????????????????????????????????????????? | | ???????????????????????????????????????????????? | | ???????????????????????????????????????????????? | | ???????????????????????????????????????????????? | | ???????????????????????????????????????????????? | | ???????????????????????????????????????????????? | | ???????????????????????????????????????????????? | | ???????????????????????????????????????????????? | | ???????????????????????????????????????????????? | | ??????????????????????? ?????????????????????? | | ??????????????????????? #????????????????????? | | ??????????????????????? #????????????????????? | | ??????????????????????? #????????????????????? | | ??????????????????????? #????????????????????? | | ??????????????????????? #????????????????????? | | ??????????????????????? #????????????????????? | | ??????????????????????# #????????????????????? | | ??????????????????????# #????????????????????? | | ??????????????????????# #????????????????????? | | ??????????????????????# #????????????????????? | | ??????????????????????# #????????????????????? | | ??????????????????????# #????????????????????? | | ?###################### ###### #???????????? | | ?# YY +?????????? | | ?# @ w +?????????? | | ?# YY +?????????? | | ?############################### #???????????? | | ???????????????????????????????????????????????? | | ???????????????????????????????????????????????? | | ???????????????????????????????????????????????? | | ???????????????????????????????????????????????? | | ???????????????????????????????????????????????? | | ???????????????????????????????????????????????? | | ???????????????????????????????????????????????? | | ???????????????????????????????????????????????? | | ???????????????????????????????????????????????? | | ???????????????????????????????????????????????? | | ???????????????????????????????????????????????? | | ???????????????????????????????????????????????? | | ???????????????????????????????????????????????? | | ???????????????????????????????????????????????? | | ???????????????????????????????????????????????? | | ???????????????????????????????????????????????? | | ???????????????????????????????????????????????? | | ???????????????????????????????????????????????? | | ???????????????????????????????????????????????? | | ???????????????????????????????????????????????? | | ???????????????????????????????????????????????? | | ???????????????????????????????????????????????? | +----------------------------------------------------+ Best States ------------- Heat Dissipation 143 Coolant Potential 65 Energy Generation 21 Energy Capacity 750 Matter Stores 400 Matter Capacity 550 Sight Range 18 Robot Scan Range 16 Terrain Scan Density 10 Jamming Range 16 Additional Mass Support 6 Base Temperature (-) 150 EM Shielding 5 Armor Coverage 3200 Resistance: KI 30 Resistance: TH 25 Resistance: EM 90 Core Shielding 20 Power Shielding 66 Propulsion Shielding 66 Utility Shielding 66 Weapon Shielding 66 Evasion (%) 50 Targeting Accuracy 6 Core Analysis 6 Recoil Reduction 6 Particle Charging 30 Offensive Hacking 28 Defensive Hacking 14 Relay Coupler Types 5 Relay Coupler Value 144 Item Schematics ----------------- Huge Storage Unit | -9/Materials | Scanalyzed Imp. Datajack | -8/Materials | Scanalyzed Combat Drone Bay | -6/Data Miner | Free Lgt. Regenerative Plating | -6/Data Miner | Free Cld. Gravmag System | -6/Data Miner | Free Prc. Matter Filter | -6/Data Miner | Free Enh. Coil Gun | -6/Data Miner | Free Imp. Linear Gravjet | -6/Data Miner | Free Adv. Target Analyzer | -6/Data Miner | Free Dispersion Rifle | -6/Data Miner | Free Adv. Trap Extractor | -6/Data Miner | Free Phase Gun | -6/Data Miner | Free Biometal Leg | -6/Data Miner | Free Hvy. Treads | -5/Factory | Scanalyzed Hrd. Heavy Armor Plating | -5/Factory | Scanalyzed Imp. Shield Generator | -5/Factory | Scanalyzed Robot Schematics ------------------ A-15 Conveyor | -6/Data Miner | Free G-50 Soldier | -6/Data Miner | Free Y-54 Guardian | -6/Data Miner | Free L-41 Fighter | -6/Data Miner | Free L-61 Swordsman | -6/Data Miner | Free R-10 Processor | -6/Data Miner | Free Fabricated ------------ Hvy. Treads | x2 | -5/Factory Dispersion Rifle | x2 | -5/Factory Alien Tech Used ----------------- None Achievements -------------- Pyromaniac Tester Torch Challenges ------------ None Game ------ Seed GuidedBiocellProcessor Manual? 0 Play Time 09:07:40 Cumulative 102.8 hours Start 2021.10.23 @ 15:46:29 End 2021.10.31 @ 14:19:08 Sessions 63 Manual Loads 0 Difficulty Rogue Special Mode None Game No. 62 Rogue 61 Adventurer 1 Explorer 0 Win Type - Total 2 Types 2/0/0/0/0/0/0/0/0 Lore% 41 Gallery% 53 Achievement% 42 Wizard Run 0 Options --------- ASCII 0 Keyboard 1 Movement Vi Keybinds 0 Fullscreen 2 Font 18/TerminusBold Map View 76x50 Tactical HUD 1 Map Filters NONE Filters NONE Steam 1 RUN: 02fefc1b-3830-4c81-957e-8bd1cc816ab3